bitfinex-derivatives/quotes_ETHF0:USTF0_20250331
["timestamp","ask_amount","ask_price","bid_price","bid_amount"]
[1743400411275,1.79429,1809.8,1809.7,4.72237974]
[1743400411474,1.79429,1809.8,1809.7,0.00827974]
[1743400411773,1.10553,1809.4,1809.3,1.5063]
[1743400411975,1.10566,1809.2,1809.1,1.429]
[1743400412178,1.10566,1809.2,1809.1,8.3258]
[1743400412379,1.10566,1809.2,1809.1,9.8321]
[1743400412681,0.7024,1809.3,1809.1,9.8321]
[1743400412682,1.80803,1809.3,1809.1,9.8321]
[1743400412873,1.80799,1809.3,1809.2,1.4328]
[1743400415383,2.53659,1809.3,1809.2,1.4328]
[1743400415776,4.6388,1809.3,1809.1,3.689]
[1743400415976,1.10572,1809.1,1809.0,0.00827974]
[1743400416278,1.10572,1809.1,1809.0,1.40687974]
[1743400417082,1.1057,1809.2,1809.0,1.40687974]
[1743400417278,1.431,1809.3,1809.0,1.40687974]
[1743400417982,1.10572,1809.1,1809.0,1.40687974]
[1743400419687,1.431,1809.3,1809.0,1.40687974]
[1743400419888,1.10572,1809.1,1809.0,1.40687974]
[1743400425382,1.431,1809.3,1809.1,1.10569]
[1743400425383,1.10564,1809.3,1809.1,1.10569]
[1743400425583,1.10564,1809.3,1809.2,2.0681]
[1743400425782,1.10564,1809.3,1809.2,5.7581]
[1743400426389,1.10564,1809.3,1809.2,5.0605]
[1743400429791,1.10566,1809.2,1809.1,0.7301]
[1743400429987,1.85066,1809.2,1809.1,5.8198]
[1743400430290,1.85066,1809.2,1809.1,1.4007]
[1743400433498,0.00827974,1809.4,1809.1,4.6085]
[1743400433684,1.11380974,1809.4,1809.3,3.2078]
[1743400433997,1.11380974,1809.4,1809.3,3.689]
[1743400434195,1.11380974,1809.4,1809.3,5.1746]
[1743400435598,1.11380974,1809.4,1809.3,8.3824]
[1743400436091,0.00827974,1809.4,1809.3,9.48799]
[1743400436392,1.11380974,1809.4,1809.3,8.3824]
[1743400439188,1.11380974,1809.4,1809.3,5.1746]
[1743400440496,0.00827974,1809.4,1809.3,6.28019]
[1743400440692,0.00827974,1809.4,1809.3,9.48799]
[1743400441199,1.11380974,1809.4,1809.3,9.48799]
[1743400441696,0.00827974,1809.4,1809.3,9.48799]
[1743400441897,1.11380974,1809.4,1809.3,9.48799]
[1743400442097,1.11380974,1809.4,1809.3,8.3824]
[1743400442300,1.11380974,1809.4,1809.3,9.48799]
[1743400442500,0.00827974,1809.4,1809.3,9.48799]
[1743400443200,1.11380974,1809.4,1809.3,9.48799]
[1743400443497,1.11380974,1809.4,1809.3,6.28019]
[1743400443699,2.60870974,1809.4,1809.3,5.1746]
[1743400445897,2.60870974,1809.4,1809.3,6.28019]
[1743400446094,2.60870974,1809.4,1809.3,7.00439]
[1743400446500,2.60870974,1809.4,1809.3,5.8988]
[1743400446998,2.60870974,1809.4,1809.3,7.00439]
[1743400447198,2.60870974,1809.4,1809.3,10.21219]
[1743400447601,2.60870974,1809.4,1809.3,9.1066]
[1743400447991,1.50317974,1809.4,1809.3,10.21219]
[1743400450706,2.60870974,1809.4,1809.3,5.8988]
[1743400450905,1.10566,1809.2,1809.1,3.2078]
[1743400451208,1.10566,1809.2,1809.0,0.00827974]
[1743400451398,1.1059,1808.8,1808.7,0.7358]
[1743400451598,1.10596,1808.7,1808.6,5.3224]
[1743400451800,2.48606,1808.7,1808.6,9.0104]
[1743400452502,2.48606,1808.7,1808.6,8.3]
[1743400456711,1.10596,1808.7,1808.6,8.3]
[1743400456906,3.9163,1809.1,1808.6,9.406]
[1743400457214,1.1059,1808.8,1808.7,2.9052]
[1743400457403,1.1059,1808.8,1808.7,1.4187]
[1743400458704,4.16627,1809.0,1808.7,3.688]
[1743400459008,1.10596,1808.7,1808.6,3.2078]
[1743400460103,2.55416,1808.7,1808.6,3.2078]
[1743400460807,2.55416,1808.7,1808.6,6.8958]
[1743400461613,2.55416,1808.7,1808.6,3.2078]
[1743400461911,1.10602,1808.6,1808.5,0.00551986]
[1743400462115,2.61182,1808.6,1808.5,0.00551986]
[1743400467508,1.10621,1808.3,1808.2,3.2078]
[1743400468511,1.10619,1808.4,1808.2,4.31401]
[1743400468718,1.11441974,1808.4,1808.3,0.7388]
[1743400469119,1.11441974,1808.4,1808.3,28.3388]
[1743400469316,0.00827974,1808.4,1808.3,1.84501]
[1743400469622,1.11441974,1808.4,1808.3,0.7388]
[1743400469821,1.11441974,1808.4,1808.3,28.3388]
[1743400470216,1.11441974,1808.4,1808.3,2.1244]
[1743400473327,1.11441974,1808.4,1808.3,3.23061]
[1743400473531,1.11441974,1808.4,1808.3,2.1244]
[1743400474830,1.11441974,1808.4,1808.3,3.23061]
[1743400475025,0.00827974,1808.4,1808.3,3.23061]
[1743400486734,0.00827974,1808.4,1808.3,6.43841]
[1743400487838,3.2078,1809.1,1809.0,1.10578]
[1743400488043,2.2029,1809.3,1808.9,3.687]
[1743400488237,2.56396,1809.2,1809.0,1.10573]
[1743400488539,1.4583,1809.2,1809.1,2.59382]
[1743400489139,1.4583,1809.2,1809.1,3.34772]
[1743400489741,1.4583,1809.2,1809.1,2.242]
[1743400490443,2.1591,1809.2,1809.1,2.242]
[1743400491342,2.1591,1809.2,1809.0,3.21607974]
[1743400491539,5.67692,1809.1,1809.0,0.00827974]
[1743400492340,8.17692,1809.1,1809.0,0.00827974]
[1743400492838,5.67692,1809.1,1809.0,0.00827974]
[1743400494733,1.10596,1808.7,1808.6,6.8938]
[1743400494934,1.10596,1808.7,1808.6,3.2078]
[1743400497543,1.10586,1808.9,1808.7,1.10594]
[1743400497744,1.10586,1808.9,1808.8,3.686]
[1743400498246,1.10586,1808.9,1808.8,5.0548]
[1743400498448,3.936,1809.1,1808.8,5.0548]
[1743400498650,1.10578,1809.0,1808.9,1.3688]
[1743400498842,2.59458,1809.0,1808.9,5.0548]
[1743400499745,1.10596,1808.7,1808.6,3.2078]
[1743400500244,1.10596,1808.7,1808.6,4.5766]
[1743400500948,1.4888,1808.8,1808.6,4.5766]
[1743400501149,2.5947,1808.8,1808.7,2.1782]
[1743400501350,2.5947,1808.8,1808.7,2.8777]
[1743400502449,1.81628,1808.9,1808.7,3.98366]
[1743400502642,1.81628,1808.9,1808.8,1.4599]
[1743400502839,1.81628,1808.9,1808.8,5.1459]
[1743400504350,1.81628,1808.9,1808.8,5.1449]
[1743400506754,1.10588,1808.9,1808.8,5.1449]
[1743400510259,1.4493,1809.0,1808.8,5.1449]
[1743400510445,1.10578,1809.0,1808.9,1.3937]
[1743400510957,2.56538,1809.0,1808.9,1.3937]
[1743400515560,1.10574,1809.1,1808.9,2.4995]
[1743400516062,1.10574,1809.1,1809.0,2.135]
[1743400517752,1.10578,1809.0,1808.9,3.685]
[1743400517952,3.20768,1809.0,1808.9,5.0765]
[1743400518653,3.20768,1809.0,1808.9,1.3915]
[1743400518856,1.10584,1808.9,1808.8,6.8918]
[1743400519161,2.55084,1808.9,1808.8,8.3312]
[1743400519663,2.55084,1808.9,1808.8,4.6472]
[1743400520864,1.10583,1809.0,1808.8,4.6472]
[1743400521060,1.445,1809.1,1808.9,1.4394]
[1743400521255,2.55072,1809.1,1809.0,0.71]
[1743400523261,2.55072,1809.1,1809.0,4.394]
[1743400525368,2.55072,1809.1,1809.0,5.8874]
[1743400528369,0.00827974,1809.3,1809.2,1.10566]
[1743400528567,0.00827974,1809.3,1809.1,2.8742]
[1743400528779,1.11386974,1809.3,1809.2,1.3967]
[1743400529269,2.62086974,1809.3,1809.2,1.3967]
[1743400529470,1.51527974,1809.3,1809.2,1.3967]
[1743400529671,2.62086974,1809.3,1809.2,1.3967]
[1743400529972,2.62086974,1809.3,1809.2,2.50236]
[1743400529973,1.51527974,1809.3,1809.2,2.50236]
[1743400532468,2.62086974,1809.3,1809.2,2.50236]
[1743400533166,2.62086974,1809.3,1809.2,1.3967]
[1743400535373,1.51527974,1809.3,1809.2,2.50236]
[1743400535569,0.00827974,1809.3,1809.2,2.50236]
[1743400535777,0.00827974,1809.3,1809.2,5.71016]
[1743400542174,0.00827974,1809.3,1809.2,2.50236]
[1743400542385,0.00827974,1809.3,1809.2,5.71016]
[1743400543879,0.00827974,1809.3,1809.2,4.31346]
[1743400544182,1.10575,1809.1,1808.9,5.1381]
[1743400544380,3.21428,1809.0,1808.9,8.3459]
[1743400545177,0.76267974,1809.3,1808.9,8.3459]
[1743400545484,1.3994,1809.2,1809.1,4.31349]
[1743400545781,0.00827974,1809.3,1809.2,1.10566]
[1743400545982,0.00827974,1809.3,1809.2,7.71986]
[1743400550180,1.48417974,1809.3,1809.2,7.71986]
[1743400550681,2.58976974,1809.3,1809.2,1.4561]
[1743400550876,4.05396974,1809.3,1809.2,5.1381]
[1743400558306,4.05396974,1809.3,1809.2,5.8898]
[1743400558605,4.05396974,1809.3,1809.2,6.6352]
[1743400558901,4.05396974,1809.3,1809.2,5.1381]
[1743400563903,4.05396974,1809.3,1809.2,1.4561]
[1743400564095,4.05396974,1809.3,1809.1,3.2078]
[1743400564096,1.10578,1809.0,1808.9,3.2078]
[1743400564997,2.51258,1809.0,1808.9,3.2078]
[1743400565408,2.51258,1809.0,1808.9,4.6669]
[1743400566293,2.51258,1809.0,1808.9,3.2078]
[1743400570308,2.51258,1809.0,1808.9,4.62]
[1743400571910,2.51258,1809.0,1808.9,1.4122]
[1743400574114,1.1059,1808.8,1808.7,3.2078]
[1743400575005,1.1059,1808.8,1808.7,4.6473]
[1743400575510,1.10589,1808.9,1808.7,5.75325]
[1743400575711,1.10589,1808.9,1808.8,2.1497]
[1743400580418,1.10584,1808.9,1808.8,2.1497]
[1743400582014,1.10584,1808.9,1808.8,5.8307]
[1743400582316,2.53294,1808.9,1808.8,5.8307]
[1743400590622,1.10584,1808.9,1808.8,5.8307]
[1743400591824,3.21607974,1809.3,1808.8,5.8307]
[1743400592031,1.10574,1809.1,1808.9,2.48041]
[1743400592329,1.10574,1809.1,1809.0,1.3746]
[1743400592519,1.10574,1809.1,1809.0,2.0674]
[1743400595832,1.10572,1809.1,1809.0,2.0674]
[1743400596030,1.10572,1809.1,1809.0,3.17318]
[1743400597424,1.10569,1809.2,1809.0,3.17318]
[1743400597634,1.10569,1809.2,1809.1,5.8589]
[1743400598938,1.10566,1809.2,1809.1,6.96459]
[1743400599234,1.10566,1809.2,1809.1,10.17239]
[1743400599634,1.10566,1809.2,1809.1,5.3867]
[1743400599835,1.10566,1809.2,1809.1,4.6461]
[1743400600937,1.10566,1809.2,1809.1,3.2078]
[1743400602138,1.10566,1809.2,1809.1,4.6985]
[1743400609440,1.10566,1809.2,1809.1,1.4907]
[1743400610643,1.44277974,1809.3,1809.1,1.4907]
[1743400610842,2.54836974,1809.3,1809.2,0.7049]
[1743400611343,0.00827974,1809.3,1809.2,1.81056]
[1743400611641,1.11386974,1809.3,1809.2,0.7049]
[1743400611845,1.11386974,1809.3,1809.2,2.0877]
[1743400613542,1.80656974,1809.3,1809.2,1.3828]
[1743400615348,2.54646974,1809.3,1809.2,1.3828]
[1743400621648,1.10566,1809.2,1809.1,3.679]
[1743400621840,2.57116,1809.2,1809.1,5.076]
[1743400622548,2.57116,1809.2,1809.1,1.397]
[1743400629646,1.4655,1809.2,1808.9,0.6814]
[1743400629846,1.10596,1808.7,1808.6,5.4369]
[1743400630052,1.10596,1808.7,1808.6,3.9291]
[1743400633451,1.10596,1808.7,1808.6,3.2078]
[1743400633651,1.10621,1808.3,1808.2,1.3657]
[1743400634554,2.56761,1808.3,1808.2,1.3657]
[1743400637960,1.10621,1808.3,1808.2,1.3657]
[1743400638257,1.10621,1808.3,1808.2,5.0437]
[1743400638662,1.10617,1808.4,1808.2,6.14995]
[1743400640560,1.10617,1808.4,1808.3,1.4773]
[1743400640758,4.6187,1808.8,1808.3,2.58349]
[1743400640759,1.10612,1808.5,1808.3,2.58349]
[1743400640960,1.10605,1808.6,1808.4,2.58342]
[1743400641157,1.10605,1808.6,1808.5,6.5995]
[1743400645459,3.2078,1809.0,1808.5,9.0995]
[1743400645663,4.3136,1809.0,1808.9,1.10584]
[1743400645968,1.10576,1809.1,1809.0,1.10578]
[1743400646158,1.10569,1809.2,1809.0,3.92648]
[1743400646353,1.10569,1809.2,1809.0,3.92644]
[1743400646669,1.10569,1809.2,1809.1,1.3625]
[1743400648363,1.10569,1809.2,1809.1,5.0405]
[1743400648864,3.21607974,1809.3,1809.2,1.10566]
[1743400648865,0.00827974,1809.3,1809.2,1.10566]
[1743400649168,3.2078,1809.9,1809.5,1.10545]
[1743400649369,3.2078,1809.9,1809.6,5.7512]
[1743400649370,1.10535,1809.7,1809.6,5.7512]
[1743400651467,1.10535,1809.7,1809.6,1.3759]
[1743400651671,1.10535,1809.7,1809.6,3.677]
[1743400651672,4.31315,1809.7,1809.6,3.677]
[1743400651860,5.02475,1809.7,1809.6,3.677]
[1743400652771,1.10541,1809.6,1809.5,0.00827974]
[1743400653069,3.33621,1809.6,1809.5,0.00827974]
[1743400655976,1.10567,1809.2,1809.1,3.676]
[1743400656169,1.10567,1809.2,1809.1,1.4699]
[1743400656366,1.10567,1809.2,1809.1,5.1459]
[1743400657165,2.54327,1809.2,1809.1,5.1459]
[1743400657574,3.28867,1809.2,1809.1,5.1459]
[1743400659476,1.10578,1809.0,1808.9,3.2078]
[1743400659671,1.10578,1809.0,1808.9,6.8838]
[1743400660074,1.10578,1809.0,1808.9,8.2996]
[1743400661879,2.53364,1809.1,1808.9,9.40544]
[1743400662078,1.1057,1809.2,1809.0,2.52156]
[1743400662375,1.1057,1809.2,1809.1,1.4158]
[1743400663775,1.8493,1809.2,1809.1,1.4158]
[1743400665678,2.5545,1809.2,1809.1,1.4158]
[1743400669977,4.6566,1809.2,1808.8,0.7252]
[1743400670179,1.10584,1808.9,1808.8,0.7252]
[1743400670377,1.10584,1808.9,1808.8,5.881]
[1743400670979,1.1058,1809.0,1808.8,5.881]
[1743400671180,1.1058,1809.0,1808.9,1.4798]
[1743400671783,2.47934,1809.1,1808.9,2.58561]
[1743400671985,1.10574,1809.1,1808.9,2.58561]
[1743400672284,1.10574,1809.1,1809.0,2.2584]
[1743400674777,3.2078,1809.2,1809.0,3.36415]
[1743400674980,3.2078,1809.2,1809.1,5.0456]
[1743400675276,3.2078,1809.2,1809.1,5.8007]
[1743400676588,4.31346,1809.2,1809.1,5.8007]
[1743400679797,4.31346,1809.2,1809.1,5.0456]
[1743400679993,5.75766,1809.2,1809.1,5.0456]
[1743400685908,2.54986,1809.2,1809.1,5.0456]
[1743400687710,1.10578,1809.0,1808.9,3.675]
[1743400688611,1.10578,1809.0,1808.9,5.0667]
[1743400688909,2.52166,1809.1,1808.9,6.17254]
[1743400689116,1.10576,1809.1,1809.0,2.0843]
[1743400689411,1.10576,1809.1,1809.0,2.8401]
[1743400690410,2.48336,1809.1,1809.0,1.3917]
[1743400690816,1.10578,1809.0,1808.9,3.675]
[1743400691012,2.48338,1809.0,1808.9,1.4962]
[1743400691203,1.10596,1808.7,1808.6,3.2078]
[1743400691403,1.10596,1808.7,1808.6,6.8828]
[1743400692204,1.11422974,1808.8,1808.6,7.98882]
[1743400692407,1.11422974,1808.8,1808.7,2.53286]
[1743400692612,1.11422974,1808.8,1808.7,2.9231]
[1743400694116,1.1057,1809.2,1809.0,1.10576]
[1743400694313,1.1057,1809.2,1809.1,5.78]
[1743400694518,1.1057,1809.2,1809.1,6.5156]
[1743400695917,1.1057,1809.2,1809.1,1.3853]
[1743400696121,3.2461,1809.2,1809.1,5.0603]
[1743400697325,3.2461,1809.2,1809.1,5.7438]
[1743400699009,3.2461,1809.2,1809.1,6.4687]
[1743400701621,3.2461,1809.2,1809.1,5.0593]
[1743400701926,1.10578,1809.0,1808.9,5.142]
[1743400702122,1.10578,1809.0,1808.9,6.519]
[1743400702420,1.10578,1809.0,1808.9,1.377]
[1743400702625,1.79828,1809.0,1808.9,3.674]
[1743400703328,1.10596,1808.7,1808.6,3.68227974]
[1743400704127,3.31266,1808.7,1808.6,3.68227974]
[1743400705425,3.31266,1808.7,1808.6,0.00827974]
[1743400706420,3.31266,1808.7,1808.6,1.40437974]
[1743400707926,3.31266,1808.7,1808.6,0.00827974]
[1743400709825,2.55906,1808.7,1808.6,0.00827974]
[1743400714039,1.10596,1808.7,1808.6,0.00827974]
[1743400719738,3.20816,1808.7,1808.6,0.00827974]
[1743400720042,3.95306,1808.7,1808.6,3.68227974]
[1743400720543,2.50796,1808.7,1808.6,3.68227974]
[1743400721741,1.10596,1808.7,1808.6,3.68227974]
[1743400722138,1.10596,1808.7,1808.6,5.07047974]
[1743400722536,3.19726,1808.7,1808.6,5.07047974]
[1743400729541,3.19726,1808.7,1808.6,0.00827974]
[1743400737466,1.10596,1808.7,1808.6,0.00827974]
[1743400739970,2.60426,1808.7,1808.6,0.00827974]
[1743400744069,2.60426,1808.7,1808.6,3.68027974]
[1743400749170,1.4983,1808.7,1808.1,3.2078]
[1743400749371,1.10627,1808.2,1808.1,3.2078]
[1743400749570,1.10627,1808.2,1808.1,6.8798]
[1743400750473,1.10627,1808.2,1808.1,9.7172]
[1743400751771,1.11450974,1808.3,1808.1,9.7172]
[1743400751969,1.11450974,1808.3,1808.2,1.504]
[1743400757279,1.11450974,1808.3,1808.2,2.61027]
[1743400757579,1.11450974,1808.3,1808.2,1.504]
[1743400757780,1.11450974,1808.3,1808.2,2.61027]
[1743400758885,1.11450974,1808.3,1808.2,1.504]
[1743400760085,1.11450974,1808.3,1808.2,2.61027]
[1743400761076,1.11450974,1808.3,1808.2,1.504]
[1743400762185,1.11450974,1808.3,1808.2,2.61027]
[1743400763687,1.11450974,1808.3,1808.2,1.504]
[1743400770692,0.00827974,1808.3,1808.2,2.61027]
[1743400770895,2.76453,1809.0,1808.7,1.10596]
[1743400770896,1.4044,1808.8,1808.7,1.10596]
[1743400771083,1.1059,1808.8,1808.7,3.671]
[1743400771691,1.1059,1808.8,1808.7,6.5594]
[1743400772290,2.6029,1808.8,1808.7,6.5594]
[1743400772499,3.3207,1808.8,1808.7,5.0998]
[1743400773393,0.74257974,1808.9,1808.7,5.0998]
[1743400773596,3.34542974,1808.9,1808.8,1.4636]
[1743400774798,2.61112974,1808.9,1808.8,1.4636]
[1743400778286,0.00827974,1808.9,1808.8,2.5695]
[1743400793820,1.10567,1809.2,1808.8,1.4636]
[1743400794016,3.2078,1809.3,1809.2,1.10566]
[1743400794209,2.9105,1809.5,1809.4,1.10553]
[1743400794409,4.01599,1809.5,1809.3,4.06165]
[1743400794614,4.01599,1809.5,1809.4,1.4795]
[1743400794813,4.01599,1809.5,1809.4,2.58503]
[1743400795017,4.01599,1809.5,1809.4,1.4795]
[1743400798420,4.01599,1809.5,1809.4,5.1465]
[1743400799025,4.01599,1809.5,1809.4,3.667]
[1743400800427,0.00827974,1809.6,1809.4,3.667]
[1743400800626,2.14987974,1809.6,1809.5,2.49177]
[1743400800832,3.25528974,1809.6,1809.5,1.3863]
[1743400801430,2.14987974,1809.6,1809.1,3.2078]
[1743400801621,1.10568,1809.2,1809.1,5.0533]
[1743400801816,1.10568,1809.2,1809.1,3.667]
[1743400802123,3.22725,1809.3,1809.1,3.667]
[1743400802324,4.3133,1809.5,1809.1,3.667]
[1743400802524,1.4039,1809.4,1809.2,3.21951]
[1743400802724,1.4039,1809.4,1809.3,2.57389]
[1743400802932,0.00827974,1809.6,1809.5,1.10547]
[1743400803122,0.00827974,1809.6,1809.5,7.98027]
[1743400803424,0.00827974,1809.6,1809.5,4.6268]
[1743400803625,1.11368974,1809.6,1809.5,3.667]
[1743400803926,2.76298,1810.0,1809.5,3.667]
[1743400803927,3.2078,1810.6,1809.5,16.82674044]
[1743400804127,0.7177,1810.5,1810.1,3.2078]
[1743400804428,4.31263,1810.6,1810.3,1.10494]
[1743400804723,3.2078,1810.6,1810.4,1.1049]
[1743400804929,3.2078,1810.6,1810.5,3.667]
[1743400805128,0.00827974,1810.7,1810.5,3.667]
[1743400805326,0.00827974,1810.7,1810.6,1.4683]
[1743400805725,1.39447974,1810.7,1810.6,1.4683]
[1743400806123,0.00827974,1810.7,1810.6,2.5731]
[1743400807135,0.00827974,1810.7,1810.6,3.3033]
[1743400807520,0.00827974,1810.7,1810.6,4.7698]
[1743400807727,0.00827974,1810.7,1810.6,6.2598]
[1743400807922,0.00827974,1810.7,1810.6,6.9963]
[1743400812631,1.10445,1811.2,1811.0,1.10454]
[1743400812827,1.3833,1811.1,1811.0,3.665]
[1743400813028,1.3833,1811.1,1811.0,5.1158]
[1743400813227,2.4878,1811.1,1811.0,5.1158]
[1743400813437,1.3833,1811.1,1811.0,6.22036]
[1743400813637,2.4878,1811.1,1811.0,5.1158]
[1743400814541,2.4878,1811.1,1811.0,3.665]
[1743400815034,4.5911,1811.1,1810.9,3.664]
[1743400815343,3.30356,1811.0,1810.9,3.664]
[1743400815635,2.199,1811.0,1810.8,3.664]
[1743400815841,3.27952,1810.9,1810.8,3.664]
[1743400817138,2.1749,1810.9,1810.6,3.2078]
[1743400817340,1.10474,1810.7,1810.6,3.2078]
[1743400817532,1.10474,1810.7,1810.6,6.8708]
[1743400818042,2.58973,1810.8,1810.6,6.8708]
[1743400818339,1.485,1810.8,1810.6,6.8708]
[1743400818540,2.51024,1810.7,1810.6,8.3611]
[1743400818735,1.10483,1810.6,1810.3,3.21607974]
[1743400818940,1.10486,1810.5,1810.3,4.32103974]
[1743400819141,1.78803,1810.6,1810.4,5.1533]
[1743400819340,1.78803,1810.6,1810.4,6.25821]
[1743400819739,1.78803,1810.6,1810.5,1.4903]
[1743400820639,1.10492,1810.4,1810.3,3.21607974]
[1743400820837,1.10492,1810.4,1810.3,5.16157974]
[1743400821146,0.7186,1810.5,1810.3,5.16157974]
[1743400821342,3.2078,1810.6,1810.5,1.10486]
[1743400821543,1.4022,1811.0,1810.5,3.2078]
[1743400821742,1.10464,1810.9,1810.7,1.10471]
[1743400822045,1.10464,1810.9,1810.8,1.4342]
[1743400822249,4.61,1811.0,1810.8,3.663]
[1743400822438,1.10462,1810.9,1810.8,3.663]
[1743400824046,3.9264,1811.0,1810.8,4.76765]
[1743400824242,5.03098,1811.0,1810.9,1.3813]
[1743400825541,1.10474,1810.7,1810.5,1.10482]
[1743400825748,0.6931,1810.9,1810.6,5.0443]
[1743400825950,1.10473,1810.8,1810.6,6.1491]
[1743400826240,1.10473,1810.8,1810.7,1.3813]
[1743400826445,0.6931,1810.9,1810.7,1.3813]
[1743400826660,1.10468,1810.8,1810.7,1.3813]
[1743400827252,1.10468,1810.8,1810.7,2.48604]
[1743400827548,3.21607974,1811.2,1810.7,4.14314]
[1743400827742,0.00827974,1811.2,1810.9,1.1046]
[1743400827943,1.10453,1811.1,1811.0,5.1363]
[1743400828142,1.10453,1811.1,1811.0,6.24086]
[1743400828644,1.11276974,1811.2,1811.0,6.24086]
[1743400828845,1.11276974,1811.2,1811.1,1.4733]
[1743400829351,0.00827974,1811.2,1811.1,2.5778]
[1743400830838,2.9442,1811.6,1811.1,2.5778]
[1743400830839,1.4495,1811.6,1811.5,1.10425]
[1743400831044,4.31196,1811.7,1811.5,3.662]
[1743400831258,4.31196,1811.7,1811.6,1.5029]
[1743400834159,1.10419,1811.6,1811.5,0.00827974]
[1743400834350,2.52719,1811.6,1811.5,0.00827974]
[1743400835358,2.52719,1811.6,1811.4,3.662]
[1743400835359,6.68362,1811.6,1810.9,1.10458]
[1743400835557,1.10443,1811.3,1811.1,3.662]
[1743400835754,1.10437,1811.4,1811.1,5.0909]
[1743400835957,1.10437,1811.3,1811.2,1.4289]
[1743400837659,4.31208,1811.5,1811.3,1.10436]
[1743400837958,1.10434,1811.4,1811.2,1.4289]
[1743400838159,3.2078,1811.5,1811.2,1.4289]
[1743400838359,1.10435,1811.4,1811.2,1.4289]
[1743400838759,1.10435,1811.4,1811.2,2.53333]
[1743400838959,1.10435,1811.4,1811.3,1.4215]
[1743400841960,1.423,1811.6,1811.3,1.4215]
[1743400842157,3.2078,1811.7,1811.4,4.3792]
[1743400842455,0.00827974,1811.8,1811.5,2.1366]
[1743400842662,0.00827974,1811.8,1811.7,1.10413]
[1743400842966,1.11234974,1811.8,1811.7,3.662]
[1743400843154,0.00827974,1811.8,1811.7,5.8023]
[1743400843355,1.11234974,1811.8,1811.7,5.8023]
[1743400844163,1.11234974,1811.8,1811.7,5.0851]
[1743400844363,1.86374974,1811.8,1811.7,5.0851]
[1743400844555,1.10419,1811.6,1811.5,3.661]
[1743400844861,4.31199,1811.6,1811.5,3.661]
[1743400849968,1.10431,1811.4,1811.3,3.661]
[1743400850563,2.48411,1811.4,1811.3,5.1203]
[1743400851062,2.48411,1811.4,1811.3,1.4593]
[1743400851461,2.48411,1811.4,1811.1,6.87707974]
[1743400851462,4.5876,1811.4,1811.1,6.87707974]
[1743400851767,5.69194,1811.4,1811.2,3.86439]
[1743400852065,4.5876,1811.4,1811.3,1.3686]
[1743400852264,3.2078,1811.4,1811.3,2.47297]
[1743400852857,1.10427,1811.5,1811.3,1.3686]
[1743400853065,1.10427,1811.5,1811.4,5.0296]
[1743400853263,1.10425,1811.5,1811.4,6.13389]
[1743400853465,2.58784,1811.6,1811.4,6.13389]
[1743400853660,2.58784,1811.6,1811.5,1.3686]
[1743400853859,2.58784,1811.6,1811.5,2.0627]
[1743400854258,0.71737974,1811.8,1811.5,2.0627]
[1743400854463,1.10413,1811.7,1811.6,2.1207]
[1743400854863,2.50323,1811.7,1811.6,2.1207]
[1743400856571,5.71103,1811.7,1811.6,5.0296]
[1743400858568,1.3991,1811.7,1811.3,3.2078]
[1743400858772,1.10431,1811.4,1811.3,3.2078]
[1743400858971,1.10425,1811.5,1811.4,1.3705]
[1743400859270,2.60894,1811.6,1811.4,3.18951]
[1743400859965,2.60894,1811.6,1811.5,1.3705]
[1743400860870,1.10419,1811.6,1811.5,1.3705]
[1743400861271,2.60489974,1811.8,1811.6,1.10419]
[1743400861574,2.60489974,1811.8,1811.7,1.4084]
[1743400863873,1.11234974,1811.8,1811.7,1.4084]
[1743400864072,0.00827974,1811.8,1811.7,2.51253]
[1743400864483,1.11234974,1811.8,1811.7,1.4084]
[1743400867485,2.62204974,1811.8,1811.7,1.4084]
[1743400869283,2.62204974,1811.8,1811.7,2.51253]
[1743400869489,0.00827974,1811.8,1811.7,2.51253]
[1743400869696,1.11234974,1811.8,1811.7,1.4084]
[1743400869986,0.00827974,1811.8,1811.7,2.51253]
[1743400872788,0.00827974,1811.8,1811.7,5.72033]
[1743400873085,1.10391,1812.1,1811.9,1.10396]
[1743400873396,2.54031,1812.1,1812.0,1.4531]
[1743400873591,2.54031,1812.1,1812.0,2.8218]
[1743400875490,1.4364,1812.1,1812.0,2.8218]
[1743400875791,2.54029,1812.1,1812.0,2.8218]
[1743400875994,2.54029,1812.1,1812.0,3.92575]
[1743400876188,1.4364,1812.1,1812.0,3.92575]
[1743400876489,2.54029,1812.1,1812.0,2.8218]
[1743400877192,3.26469,1812.1,1812.0,2.8218]
[1743400878289,2.1608,1812.1,1811.7,3.2078]
[1743400878490,1.10406,1811.9,1811.8,5.1179]
[1743400878991,3.24076,1811.9,1811.8,5.1179]
[1743400880589,3.24076,1811.9,1811.8,1.4579]
[1743400880890,3.24076,1811.9,1811.4,6.0466]
[1743400880891,1.10425,1811.5,1811.4,6.0466]
[1743400881095,1.10425,1811.5,1811.4,9.7066]
[1743400881296,1.10421,1811.6,1811.4,10.81089]
[1743400881487,1.10419,1811.6,1811.5,1.3777]
[1743400881687,3.24519,1811.6,1811.5,1.3777]
[1743400882385,1.10425,1811.5,1811.4,3.2078]
[1743400882587,2.47205,1811.5,1811.4,3.2078]
[1743400882792,1.10443,1811.2,1811.1,3.66827974]
[1743400883296,4.31221,1811.3,1811.1,3.66827974]
[1743400883490,1.3678,1811.2,1811.1,3.66827974]
[1743400883696,2.47223,1811.2,1811.1,3.66827974]
[1743400884087,1.3678,1811.2,1811.1,4.77277974]
[1743400884295,2.52088,1811.3,1811.1,4.77277974]
[1743400884591,3.2078,1811.5,1811.2,1.10443]
[1743400884592,1.10436,1811.4,1811.2,1.10443]